bitfinex/quotes_ETHUSD_20230902
["timestamp","ask_amount","ask_price","bid_price","bid_amount"]
[1693682704971,10.50233532,1633.7,1633.6,6.5835839]
[1693682705187,9.33950473,1633.7,1633.6,6.5835839]
[1693682705400,10.50233356,1633.7,1633.6,6.5835839]
[1693682710080,8.37581118,1633.7,1633.6,6.5835839]
[1693682711694,9.98111272,1633.7,1633.6,6.5835839]
[1693682712392,8.37581118,1633.7,1633.6,6.5835839]
[1693682733821,6.16991118,1633.7,1633.6,0.50172986]
[1693682734004,6.16991118,1633.7,1633.4,3.01390497]
[1693682734005,2.3622936,1633.6,1633.4,3.01390497]
[1693682734215,6.07075259,1633.5,1633.4,6.09575901]
[1693682734924,8.27845259,1633.5,1633.4,6.09575901]
[1693682735291,8.27845259,1633.5,1633.4,9.09575901]
[1693682735840,7.11541541,1633.5,1633.4,9.09575901]
[1693682736194,5.82957978,1633.5,1633.4,9.09575901]
[1693682741017,6.77735068,1633.5,1633.2,3.0]
[1693682741223,5.66262236,1633.4,1633.2,5.56395404]
[1693682741423,3.00447261,1633.4,1633.3,3.0]
[1693682741625,5.66304894,1633.4,1633.3,3.0]
[1693682741933,6.76985749,1633.4,1633.3,3.0]
[1693682742137,9.00895749,1633.4,1633.3,3.0]
[1693682744340,7.09140851,1633.4,1633.2,2.97479361]
[1693682744545,7.09140851,1633.4,1633.0,4.45972242]
[1693682744546,2.3622936,1633.2,1633.0,6.1214]
[1693682744838,3.00411901,1633.2,1633.1,3.08185404]
[1693682745048,4.06766391,1633.2,1633.1,3.08185404]
[1693682745617,2.2120336,1633.2,1633.1,3.08185404]
[1693682745830,2.2120336,1633.2,1633.1,6.08185404]
[1693682746335,4.4136336,1633.2,1633.1,6.08185404]
[1693682746653,4.4076436,1633.2,1633.1,6.08185404]
[1693682749446,4.4076436,1633.2,1633.1,3.0]
[1693682750922,5.47120612,1633.2,1633.1,3.0]
[1693682751245,6.89155269,1633.2,1633.1,3.0]
[1693682751445,6.28533747,1633.2,1633.0,5.04300693]
[1693682751645,3.62638952,1633.2,1633.0,5.04300693]
[1693682751850,5.85088952,1633.2,1633.0,5.04300693]
[1693682752626,6.81392227,1633.2,1633.0,5.04300693]
[1693682755756,1.70541605,1633.1,1633.0,5.04300693]
[1693682756445,3.89001605,1633.1,1633.0,5.04300693]
[1693682758055,3.89001605,1633.1,1633.0,2.44330693]
[1693682758432,5.48540638,1633.1,1633.0,2.44330693]
[1693682758634,3.89001605,1633.1,1633.0,2.44330693]
[1693682758836,5.48541086,1633.1,1633.0,2.44330693]
[1693682760640,3.89001605,1633.1,1633.0,2.44330693]
[1693682761246,5.48538215,1633.1,1633.0,2.44330693]
[1693682761450,3.89001605,1633.1,1633.0,2.44330693]
[1693682764561,5.48536972,1633.1,1633.0,2.44330693]
[1693682765370,1.70541605,1633.1,1633.0,4.01130693]
[1693682765585,1.70541605,1633.1,1633.0,4.65527762]
[1693682766038,3.81090176,1633.2,1633.0,4.65527762]
[1693682766239,3.81090176,1633.2,1633.1,1.568]
[1693682766439,6.46972774,1633.2,1633.1,1.568]
[1693682769654,5.82790233,1633.2,1633.1,1.568]
[1693682774303,7.11373796,1633.2,1633.1,1.568]
[1693682777307,8.2777821,1633.2,1633.1,1.568]
[1693682777653,7.11268142,1633.2,1633.1,1.568]
[1693682778605,8.27777907,1633.2,1633.1,1.568]
[1693682782467,7.11337471,1633.2,1633.1,1.568]
[1693682782664,8.27776844,1633.2,1633.1,1.568]
[1693682787002,10.48466844,1633.2,1633.1,1.568]
[1693682787707,10.48469141,1633.2,1633.1,1.568]
[1693682788498,9.32122563,1633.2,1633.1,1.568]
[1693682788699,9.32140502,1633.2,1633.1,1.568]
[1693682789203,10.48468994,1633.2,1633.1,1.568]
[1693682789578,9.32141521,1633.2,1633.1,1.568]
[1693682804777,10.48469079,1633.2,1633.1,1.568]
[1693682812039,10.48469079,1633.2,1633.0,4.01130693]
[1693682812217,4.26636068,1633.1,1633.0,4.01130693]
[1693682815159,8.00511842,1633.1,1633.0,1.9537]
[1693682815506,9.93148027,1633.1,1633.0,1.9537]
[1693682815846,8.00511842,1633.1,1633.0,1.9537]
[1693682816970,9.61131467,1633.1,1633.0,1.9537]
[1693682818556,8.00511842,1633.1,1633.0,1.31542944]
[1693682818725,9.6105048,1633.1,1633.0,1.31542944]
[1693682821094,3.21901399,1633.1,1633.0,1.31542944]
[1693682821264,8.61456537,1633.1,1633.0,1.31542944]
[1693682826298,8.61456537,1633.1,1633.0,0.18066085]
[1693682826299,10.00954026,1633.1,1633.0,0.18066085]
[1693682829474,11.9355704,1633.1,1633.0,0.18066085]
[1693682832758,14.59528158,1633.1,1633.0,0.18066085]
[1693682839676,12.66925144,1633.1,1633.0,0.18066085]
[1693682839863,14.38148446,1633.1,1633.0,0.18066085]
[1693682840051,16.30352555,1633.1,1633.0,0.18066085]
[1693682840251,14.38148446,1633.1,1633.0,0.18066085]
[1693682842462,2.5673653,1632.9,1632.8,1.9539]
[1693682842657,8.95603701,1632.9,1632.8,1.9539]
[1693682843302,10.26521648,1632.9,1632.8,1.9539]
[1693682846366,10.26521648,1632.9,1632.8,0.8190687]
[1693682846616,8.66358503,1632.9,1632.8,0.8190687]
[1693682846912,10.26537004,1632.9,1632.8,0.8190687]
[1693682847212,10.26537506,1632.9,1632.8,0.8190687]
[1693682848584,8.66358503,1632.9,1632.8,0.8190687]
[1693682848783,8.30226333,1632.9,1632.8,0.8190687]
[1693682855497,10.22422107,1632.9,1632.8,0.8190687]
[1693682856800,12.88399618,1632.9,1632.8,0.8190687]
[1693682857513,10.22422107,1632.9,1632.8,0.8190687]
[1693682857717,12.88399618,1632.9,1632.8,0.8190687]
[1693682858450,12.88781977,1632.9,1632.8,0.8190687]
[1693682858603,12.88781977,1632.9,1632.8,0.18071795]
[1693682860629,10.96265251,1632.9,1632.8,0.18071795]
[1693682864752,12.89069996,1632.9,1632.8,0.18071795]
[1693682866370,0.36143589,1632.7,1632.6,2.83499237]
[1693682866533,4.17443996,1632.7,1632.6,2.83499237]
[1693682866733,8.96207317,1632.7,1632.6,2.83499237]
[1693682867274,10.24764044,1632.7,1632.6,2.83499237]
[1693682868737,8.64067997,1632.7,1632.6,2.83499237]
[1693682870346,8.64067997,1632.7,1632.6,3.32546931]
[1693682870550,8.64067997,1632.7,1632.6,4.89346931]
[1693682870867,7.47730516,1632.7,1632.6,4.89346931]
[1693682871441,8.64064889,1632.7,1632.6,4.89346931]
[1693682871847,8.279213,1632.7,1632.6,4.89346931]
[1693682876756,8.279213,1632.7,1632.6,7.97532335]
[1693682884895,7.11616597,1632.7,1632.6,7.97532335]
[1693682887967,7.11616597,1632.7,1632.6,7.48484641]
[1693682888600,5.8305987,1632.7,1632.6,7.48484641]
[1693682894321,3.6245551,1632.7,1632.6,7.48484641]
[1693682894642,5.8305987,1632.7,1632.6,7.48484641]
[1693682895521,3.6245551,1632.7,1632.6,7.48484641]
[1693682895692,5.8305987,1632.7,1632.6,7.48484641]
[1693682895920,3.6245551,1632.7,1632.6,7.48484641]
[1693682896323,5.8305987,1632.7,1632.6,7.48484641]
[1693682898256,2.2060436,1632.7,1632.6,7.48484641]
[1693682898552,5.83005721,1632.7,1632.6,7.48484641]
[1693682899457,8.00695721,1632.7,1632.6,7.48484641]
[1693682900544,8.64985693,1632.7,1632.6,7.48484641]
[1693682900748,6.44381333,1632.7,1632.6,7.48484641]
[1693682900956,5.80091361,1632.7,1632.6,7.48484641]
[1693682901165,6.44381328,1632.7,1632.6,7.48484641]
[1693682901353,6.44380889,1632.7,1632.6,7.48484641]
[1693682902845,5.80091361,1632.7,1632.6,7.48484641]
[1693682904670,8.00695721,1632.7,1632.6,7.48484641]
[1693682905470,5.80091361,1632.7,1632.6,7.48484641]
[1693682905771,8.00695721,1632.7,1632.6,7.48484641]
[1693682906771,5.80091361,1632.7,1632.6,7.48484641]
[1693682907067,6.44380646,1632.7,1632.6,10.48484641]
[1693682907980,8.64985006,1632.7,1632.6,10.48484641]
[1693682915987,8.00695721,1632.7,1632.6,10.48484641]
[1693682934898,9.29281853,1632.7,1632.6,10.48484641]
[1693682968054,8.00695721,1632.7,1632.6,10.48484641]
[1693682968215,9.29281853,1632.7,1632.6,10.48484641]
[1693682977528,8.00695721,1632.7,1632.6,10.48484641]
[1693682978181,9.29281853,1632.7,1632.6,10.48484641]
[1693682978725,9.29281853,1632.7,1632.6,4.81779237]
[1693682978892,13.15359302,1632.7,1632.6,0.24979237]
[1693682981846,11.54626636,1632.7,1632.6,0.24979237]
[1693682988343,13.15359302,1632.7,1632.6,0.24979237]
[1693682991577,11.54626636,1632.7,1632.6,0.24979237]
[1693682992580,13.15359302,1632.7,1632.6,0.24979237]
[1693682994390,11.54626636,1632.7,1632.6,0.24979237]
[1693682994892,13.15359302,1632.7,1632.6,0.24979237]
[1693682996976,11.54626636,1632.7,1632.6,0.24979237]
[1693682998311,13.15359302,1632.7,1632.6,0.24979237]
[1693682998517,11.54626636,1632.7,1632.6,0.24979237]
[1693683002680,11.54632819,1632.7,1632.6,0.24979237]
[1693683006925,10.26075391,1632.7,1632.6,0.24979237]
[1693683007129,11.86772176,1632.7,1632.6,0.24979237]
[1693683011221,0.38864123,1632.5,1632.3,1.568]
[1693683011413,0.64258648,1632.4,1632.3,1.568]
[1693683011720,0.64258648,1632.4,1632.3,1.80389618]
[1693683011911,3.30247303,1632.4,1632.3,1.80389618]
[1693683012619,1.7065411,1632.4,1632.3,1.80389618]
[1693683013748,1.7065411,1632.4,1632.3,2.28588472]
[1693683024077,3.30263665,1632.4,1632.3,2.28588472]
[1693683025787,3.30263665,1632.4,1632.3,0.71788472]
[1693683025943,3.30263665,1632.4,1632.3,2.28588472]
[1693683042008,5.44023665,1632.4,1632.3,2.28588472]
[1693683045203,3.30263665,1632.4,1632.3,2.28588472]
[1693683045517,3.81250981,1632.5,1632.3,5.89632723]
[1693683045892,3.81250981,1632.5,1632.3,8.51962723]
[1693683046735,2.84863008,1632.5,1632.3,8.51962723]
[1693683047736,3.81250981,1632.5,1632.3,8.51962723]
[1693683048236,2.84863008,1632.5,1632.3,8.51962723]
[1693683048896,2.84863008,1632.5,1632.4,1.568]
[1693683049098,5.50852438,1632.5,1632.4,1.568]
[1693683053144,5.50852438,1632.5,1632.4,4.568]
[1693683057046,5.5086549,1632.5,1632.4,4.568]
[1693683060154,3.3026113,1632.5,1632.4,4.568]
[1693683060315,5.5086549,1632.5,1632.4,4.568]
[1693683062770,3.3026113,1632.5,1632.4,4.568]
[1693683063379,5.5086549,1632.5,1632.4,4.568]
[1693683066246,1.70667802,1632.5,1632.4,8.74895792]
[1693683066448,0.6427225,1632.6,1632.5,1.568]
[1693683066648,0.6427225,1632.8,1632.5,10.01181044]
[1693683066856,1.60680626,1632.9,1632.6,3.08185404]
[1693683067187,1.60680626,1632.9,1632.7,3.0]
[1693683067354,4.2661503,1632.9,1632.8,3.08185404]
[1693683067542,3.30206654,1632.9,1632.8,6.08185404]
[1693683068593,1.70646108,1632.9,1632.8,6.08185404]
[1693683069563,3.81130626,1633.0,1632.8,6.08185404]
[1693683069808,3.81130626,1633.0,1632.9,3.0]
[1693683069960,5.82792601,1633.0,1632.9,3.0]
[1693683070159,6.46962383,1633.0,1632.9,3.0]
[1693683071415,5.50554007,1633.0,1632.9,3.0]
[1693683071606,5.51523952,1633.0,1632.9,3.0]
[1693683071962,5.51523952,1633.0,1632.9,4.568]
[1693683075696,6.47932328,1633.0,1632.9,4.568]
[1693683076503,6.47627015,1633.0,1632.9,4.568]
[1693683077906,5.51461709,1633.0,1632.9,4.568]
[1693683079212,6.47627015,1633.0,1632.9,4.568]
[1693683079871,5.83516811,1633.0,1632.9,4.568]
[1693683084521,5.83516811,1633.0,1632.9,3.92976392]
[1693683085123,1.71431343,1633.0,1632.9,7.01161796]
[1693683085307,1.71431343,1633.0,1632.9,8.03056484]
[1693683085308,0.00969945,1633.0,1632.9,8.03056484]
[1693683085509,0.65058719,1633.0,1632.9,8.03056484]
[1693683085827,1.7142145,1633.0,1632.9,8.03056484]
[1693683088618,3.30965714,1633.0,1632.9,8.03056484]
[1693683088987,1.7142145,1633.0,1632.9,8.03056484]
[1693683089189,0.65058719,1633.0,1632.9,8.03056484]
[1693683089412,3.3096539,1633.0,1632.9,8.03056484]
[1693683095853,3.3096539,1633.0,1632.9,13.03056484]
[1693683096750,3.30954712,1633.0,1632.9,13.03056484]
[1693683102003,1.07331933,1633.0,1632.9,13.03056484]
[1693683102161,0.00969945,1633.0,1632.9,13.03056484]
[1693683110506,1.71405796,1633.0,1632.9,13.03056484]
[1693683112486,3.30940003,1633.0,1632.9,13.03056484]
[1693683113319,1.71405796,1633.0,1632.9,13.03056484]
[1693683114010,3.91615796,1633.0,1632.9,13.03056484]
[1693683116194,2.21179945,1633.0,1632.9,13.03056484]
[1693683121945,2.21179945,1633.0,1632.9,12.01161796]
[1693683128464,3.91740812,1633.0,1632.9,12.01161796]
[1693683129863,7.01740812,1633.0,1632.9,12.01161796]
[1693683132069,3.10969945,1633.0,1632.9,12.01161796]
[1693683135056,4.17330359,1633.0,1632.9,12.01161796]
[1693683135265,3.10969945,1633.0,1632.9,14.63060305]
[1693683135484,4.17330285,1633.0,1632.9,14.63060305]
[1693683135770,4.81529212,1633.0,1632.9,14.63060305]
[1693683138065,4.81529212,1633.0,1632.9,15.11060305]
[1693683138474,3.10969945,1633.0,1632.9,15.11060305]
[1693683145978,0.71486816,1633.2,1633.0,1.568]
[1693683146282,1.60497318,1633.4,1633.1,4.35581044]
[1693683146283,2.2045,1633.4,1633.1,4.35581044]
[1693683146444,1.28397855,1633.6,1633.3,3.87581044]
[1693683146649,3.48847855,1633.6,1633.4,3.38758104]
[1693683146849,2.2045,1633.6,1633.5,3.87581044]
[1693683147050,4.86280381,1633.6,1633.5,3.87581044]
[1693683147249,4.86280381,1633.6,1633.5,6.87581044]
[1693683148557,3.27815078,1633.6,1633.5,6.87581044]
[1693683148779,4.87309523,1633.6,1633.5,7.60214959]
[1693683148960,3.27815078,1633.6,1633.5,7.60214959]
[1693683149157,6.37815078,1633.6,1633.5,12.60214959]
[1693683149367,5.31482926,1633.6,1633.5,12.60214959]
[1693683149587,5.3045,1633.6,1633.5,12.60214959]
[1693683150350,5.3045,1633.6,1633.5,15.73814959]
[1693683150586,2.2045,1633.6,1633.5,15.73814959]
[1693683153799,2.2045,1633.6,1633.5,14.94419319]
[1693683153956,2.2045,1633.6,1633.5,15.73814959]
[1693683157301,3.26778874,1633.6,1633.5,15.73814959]
[1693683157498,2.2045,1633.6,1633.5,15.73814959]
[1693683157699,3.2677892,1633.6,1633.5,15.73814959]
[1693683158275,3.90844433,1633.6,1633.5,15.73814959]
[1693683158666,3.2677892,1633.6,1633.5,15.73814959]
[1693683159067,3.90844433,1633.6,1633.5,15.73814959]
[1693683162093,3.90844433,1633.6,1633.5,16.22679791]
[1693683167509,5.503373,1633.6,1633.5,16.22679791]
[1693683168105,3.90844433,1633.6,1633.5,16.22679791]
[1693683168310,5.50336893,1633.6,1633.5,16.22679791]
[1693683174847,5.50336893,1633.6,1633.5,15.43284151]
[1693683175200,5.50336893,1633.6,1633.5,16.22679791]
[1693683176232,3.29886893,1633.6,1633.5,16.22679791]
[1693683177011,1.70394433,1633.6,1633.5,16.22679791]
[1693683177208,3.29881307,1633.6,1633.5,16.22679791]
[1693683177613,3.3110082,1633.6,1633.5,16.70679791]
[1693683181618,3.29881307,1633.6,1633.5,16.70679791]
[1693683184080,3.29881307,1633.6,1633.5,26.01179791]
[1693683184275,2.23552387,1633.6,1633.5,26.01179791]
[1693683184958,0.64065513,1633.6,1633.5,26.01179791]
[1693683185250,0.64065513,1633.7,1633.5,26.01179791]
[1693683185451,0.64065513,1633.7,1633.6,6.16333483]
[1693683185687,0.64065513,1633.7,1633.6,14.24518887]
[1693683185843,3.29845925,1633.7,1633.6,14.24518887]
[1693683186366,3.29889756,1633.7,1633.6,14.24518887]
[1693683187253,4.26049616,1633.7,1633.6,14.24518887]
[1693683187649,3.29889756,1633.7,1633.6,14.24518887]
[1693683188188,4.26049616,1633.7,1633.6,14.24518887]
[1693683189283,3.61943043,1633.7,1633.6,14.24518887]
[1693683189655,3.63163398,1633.7,1633.6,14.24518887]
[1693683191491,4.91376545,1633.7,1633.6,14.24518887]
[1693683191673,7.22156545,1633.7,1633.6,14.24518887]
[1693683192265,5.93943398,1633.7,1633.6,14.24518887]
[1693683192467,7.22156545,1633.7,1633.6,14.24518887]
[1693683192786,5.93943398,1633.7,1633.6,14.24518887]
[1693683194398,6.58128597,1633.7,1633.6,14.24518887]
[1693683195111,5.61963899,1633.7,1633.6,14.72518887]
[1693683195731,5.60743544,1633.7,1633.6,14.72518887]
[1693683197433,4.01273634,1633.7,1633.6,14.72518887]
[1693683197630,4.02493989,1633.7,1633.6,14.72518887]
[1693683199336,2.32000355,1633.7,1633.6,14.72518887]
[1693683199833,2.3078,1633.7,1633.6,14.72518887]
[1693683201810,2.3078,1633.7,1633.6,14.67518887]
[1693683204981,1.23137328,1633.8,1633.7,0.7939564]
[1693683205120,0.74280361,1633.9,1633.7,10.86687075]
[1693683205325,0.74280361,1633.9,1633.8,6.08185404]
[1693683205768,3.40055452,1633.9,1633.8,6.08185404]
[1693683205980,1.80590397,1633.9,1633.8,6.08185404]
[1693683206330,0.101,1633.9,1633.8,6.08185404]
[1693683206546,0.101,1633.9,1633.8,12.19577423]
[1693683207573,2.3467,1633.9,1633.8,12.19577423]
[1693683207774,2.3467,1633.9,1633.8,11.08185404]
[1693683207930,2.3467,1633.9,1633.8,12.64985404]
[1693683209192,4.05158863,1633.9,1633.8,12.64985404]
[1693683209599,4.06381296,1633.9,1633.8,7.64985404]
[1693683210798,2.35892433,1633.9,1633.8,7.64985404]
[1693683212064,2.25792433,1633.9,1633.8,7.64985404]
[1693683213493,2.64405698,1633.9,1633.8,7.64985404]
[1693683213662,2.64405698,1633.9,1633.8,6.08185404]
[1693683213663,5.94362799,1633.9,1633.8,6.08185404]
[1693683217501,6.90522659,1633.9,1633.8,6.56985663]
[1693683217893,5.94362799,1633.9,1633.8,6.56985663]
[1693683218096,6.51909394,1633.9,1633.8,6.56985663]
[1693683220278,5.87729033,1633.9,1633.8,6.56985663]
[1693683222606,5.87729033,1633.9,1633.8,8.13785663]
[1693683225810,0.01222433,1633.9,1633.8,8.13785663]
[1693683226310,0.01222433,1633.9,1633.8,10.75255663]
[1693683226697,0.01222433,1633.9,1633.8,11.90720793]
[1693683227501,0.65436017,1633.9,1633.8,11.90720793]
[1693683227699,1.07526019,1633.9,1633.8,11.90720793]
[1693683227904,0.01222433,1633.9,1633.8,11.90720793]
[1693683228398,1.07526283,1633.9,1633.8,11.90720793]
[1693683228605,1.71739867,1633.9,1633.8,11.90720793]
[1693683228982,0.01222433,1633.9,1633.8,11.90720793]
[1693683229605,1.07526081,1633.9,1633.8,16.90720793]
[1693683229800,1.71739665,1633.9,1633.8,16.90720793]
[1693683230614,3.31198766,1633.9,1633.8,16.90720793]
[1693683230778,3.31197721,1633.9,1633.8,16.90720793]
[1693683230980,1.71739665,1633.9,1633.8,16.90720793]
[1693683231885,3.31197358,1633.9,1633.8,16.90720793]
[1693683239622,3.31197358,1633.9,1633.8,14.29250793]
[1693683239812,4.27357218,1633.9,1633.8,13.13785663]
[1693683240696,3.31197358,1633.9,1633.8,13.13785663]
[1693683247552,1.71739665,1633.9,1633.8,13.13785663]
[1693683249874,1.71739665,1633.9,1633.8,8.13785663]
[1693683251118,0.01222433,1633.9,1633.8,8.13785663]
[1693683251314,1.71739428,1633.9,1633.8,9.03103793]
[1693683251518,0.01222433,1633.9,1633.8,9.03103793]
[1693683252226,0.01222433,1633.9,1633.8,11.50143793]
[1693683252424,1.71739511,1633.9,1633.8,11.50143793]
[1693683252729,1.07525927,1633.9,1633.8,11.50143793]
[1693683252935,0.01222433,1633.9,1633.8,11.50143793]
[1693683257076,0.01222433,1633.9,1633.8,16.50143793]
[1693683263677,0.01222433,1633.9,1633.8,15.60825663]
[1693683266373,0.01222433,1633.9,1633.8,10.60825663]
[1693683267769,1.07525033,1633.9,1633.8,10.60825663]
[1693683268153,1.71738617,1633.9,1633.8,10.60825663]
[1693683268476,1.71738617,1633.9,1633.8,8.13785663]
[1693683268678,3.31196517,1633.9,1633.8,8.13785663]
[1693683272700,3.31535388,1633.9,1633.8,8.13785663]
[1693683276105,4.27695248,1633.9,1633.8,8.13785663]
[1693683276394,3.31535388,1633.9,1633.8,8.13785663]
[1693683291608,3.31535388,1633.9,1633.8,14.30878693]
[1693683291820,3.31535388,1633.9,1633.8,8.13785663]
[1693683291977,3.31535388,1633.9,1633.8,14.30879631]
[1693683301532,4.27695248,1633.9,1633.8,8.13785663]
[1693683309559,3.31535388,1633.9,1633.8,8.13785663]
[1693683310275,4.27695248,1633.9,1633.8,8.13785663]
[1693683311167,4.27695248,1633.9,1633.8,14.30887506]
[1693683311664,4.27695248,1633.9,1633.8,8.13785663]
[1693683311827,4.27695248,1633.9,1633.8,14.30893737]
[1693683312175,4.27695248,1633.9,1633.8,8.13785663]
[1693683312544,4.27695248,1633.9,1633.8,14.3088998]
[1693683314773,4.27695248,1633.9,1633.8,14.30891768]
[1693683315073,4.27695248,1633.9,1633.8,14.30889106]
[1693683320878,4.27695248,1633.9,1633.8,14.30887878]
[1693683324747,4.27695248,1633.9,1633.8,14.30887251]
[1693683327399,3.31535388,1633.9,1633.8,15.73975976]
[1693683327602,3.31535388,1633.9,1633.8,25.04275976]
[1693683327900,1.0625986,1634.3,1634.0,0.7939564]
[1693683328079,0.80588909,1634.2,1634.1,9.25286992]
[1693683328268,0.54819973,1634.2,1634.1,6.08185404]
[1693683328470,1.0625986,1634.3,1634.1,13.09583499]
[1693683328669,0.101,1634.3,1634.2,9.96338907]
[1693683328870,0.101,1634.3,1634.2,6.87581044]
[1693683329496,0.101,1634.3,1634.2,7.35581044]
[1693683329801,0.101,1634.3,1634.2,8.92381044]
[1693683329983,0.101,1634.3,1634.2,10.33885748]
[1693683330303,0.101,1634.3,1634.2,15.33885748]
[1693683331493,0.101,1634.3,1634.2,14.54490108]
[1693683332182,0.101,1634.3,1634.2,14.88582713]
[1693683339013,0.101,1634.3,1634.2,15.36582713]
[1693683341316,0.101,1634.3,1634.2,15.55315729]
[1693683349056,0.101,1634.3,1634.2,15.07315729]
[1693683355394,0.101,1634.3,1634.2,15.55315729]
[1693683357424,0.101,1634.3,1634.2,15.73091729]
[1693683362629,0.101,1634.3,1634.2,13.35587025]
[1693683364839,0.11170675,1634.3,1634.2,13.35587025]
[1693683365739,1.81487443,1634.3,1634.2,8.35587025]
[1693683367624,3.40904724,1634.3,1634.2,8.35587025]
[1693683370154,3.40904724,1634.3,1634.2,8.16854009]
[1693683370355,4.37064584,1634.3,1634.2,8.16854009]
[1693683370849,3.73024106,1634.3,1634.2,8.16854009]
[1693683372858,5.01237253,1634.3,1634.2,8.16854009]
[1693683373540,3.73024106,1634.3,1634.2,8.16854009]
[1693683373852,6.17635815,1634.3,1634.2,8.16854009]
[1693683374417,5.01413865,1634.3,1634.2,8.16854009]
[1693683375652,3.73200718,1634.3,1634.2,8.16854009]
[1693683377051,4.43761105,1634.3,1634.2,4.90892605]
[1693683377415,5.71974252,1634.3,1634.2,7.99078009]
[1693683377624,3.73200718,1634.3,1634.2,7.99078009]
[1693683378653,4.374205,1634.3,1634.2,7.99078009]
[1693683379258,3.73200718,1634.3,1634.2,7.99078009]
[1693683379460,4.37419472,1634.3,1634.2,7.99078009]
[1693683380447,3.41083,1634.3,1634.2,7.99078009]
[1693683387783,1.81665719,1634.3,1634.2,7.99078009]
[1693683391898,1.17446965,1634.3,1634.2,7.99078009]
[1693683392254,0.11170675,1634.3,1634.2,7.99078009]
[1693683392494,1.17448111,1634.3,1634.2,7.99078009]
[1693683392704,0.11170675,1634.3,1634.2,7.99078009]
[1693683392880,1.17448137,1634.3,1634.2,7.99078009]
[1693683393502,0.11170675,1634.3,1634.2,7.99078009]
[1693683394331,1.17448063,1634.3,1634.2,7.99078009]
[1693683395214,1.81666817,1634.3,1634.2,7.99078009]
[1693683396202,1.17448063,1634.3,1634.2,7.99078009]
[1693683396414,1.17447838,1634.3,1634.2,7.99078009]
[1693683396618,0.11170675,1634.3,1634.2,7.99078009]
[1693683396844,1.17447839,1634.3,1634.2,7.99078009]
[1693683397728,1.81666593,1634.3,1634.2,7.99078009]
[1693683398286,0.11170675,1634.3,1634.2,7.99078009]
[1693683400848,1.17447468,1634.3,1634.2,7.99078009]
[1693683401426,1.81666222,1634.3,1634.2,7.99078009]
[1693683415477,1.81666222,1634.3,1634.2,8.85632159]
[1693683415979,0.11170675,1634.3,1634.2,8.85632159]
[1693683423571,0.64218754,1634.5,1634.2,10.13027799]
[1693683423747,0.31837885,1634.6,1634.3,3.56185404]
[1693683423948,0.31837885,1634.6,1634.4,3.0]
[1693683424267,0.31837885,1634.6,1634.5,3.08185404]
[1693683424583,0.101,1634.6,1634.5,6.9720862]
[1693683424768,0.11220886,1634.6,1634.5,6.9720862]
[1693683424973,0.11220886,1634.6,1634.5,7.4520862]
[1693683425282,0.11220886,1634.6,1634.5,12.4520862]
[1693683425487,0.11220886,1634.6,1634.5,15.5880862]
[1693683428785,0.101,1634.6,1634.5,15.5880862]
[1693683431603,0.101,1634.6,1634.5,15.91791776]
[1693683437819,0.101,1634.6,1634.5,14.5476856]
[1693683439569,2.22477,1634.7,1634.5,14.5476856]
[1693683439772,2.22477,1634.7,1634.6,4.568]
[1693683439971,2.22477,1634.7,1634.6,7.64985404]
[1693683441620,2.21126,1634.7,1634.6,7.64985404]
[1693683442619,2.18938,1634.7,1634.6,7.64985404]
[1693683444126,2.18938,1634.7,1634.6,4.64985404]
[1693683444480,2.57883981,1634.7,1634.6,1.568]
[1693683444714,2.58918041,1634.7,1634.6,1.568]
[1693683445230,4.79522401,1634.7,1634.6,1.568]
[1693683446540,5.85781864,1634.7,1634.6,1.568]
[1693683446711,5.79818864,1634.7,1634.6,1.89777887]
[1693683447038,6.43904205,1634.7,1634.6,1.89777887]
[1693683453841,8.03295365,1634.7,1634.6,1.89777887]
[1693683454337,8.03295365,1634.7,1634.6,2.39229565]
[1693683456388,4.73559401,1634.7,1634.6,2.39229565]
[1693683456595,8.03318864,1634.7,1634.6,2.39229565]
[1693683456893,7.98318864,1634.7,1634.6,2.39229565]
[1693683459662,7.73805864,1634.7,1634.6,2.39229565]
[1693683460964,7.73805864,1634.7,1634.6,1.89777887]
[1693683461508,8.69966343,1634.7,1634.6,1.89777887]
[1693683462963,8.59966343,1634.7,1634.6,1.89777887]
[1693683464201,8.6002556,1634.7,1634.6,1.89777887]
[1693683464376,7.95859357,1634.7,1634.6,1.89777887]
[1693683472725,7.95859357,1634.7,1634.6,0.32977887]
[1693683477025,9.24073329,1634.7,1634.6,0.32977887]
[1693683478705,8.85127348,1634.7,1634.6,0.32977887]
[1693683479805,7.11665348,1634.7,1634.6,0.32977887]
[1693683479999,8.60090793,1634.7,1634.6,0.32977887]
[1693683483239,9.88512193,1634.7,1634.6,0.32977887]
[1693683483616,8.60090793,1634.7,1634.6,0.32977887]
[1693683483932,9.8851325,1634.7,1634.6,0.32977887]
[1693683484343,8.28245784,1634.7,1634.6,0.32977887]
[1693683504060,8.18245784,1634.7,1634.6,0.32977887]
[1693683504782,8.19333965,1634.7,1634.6,0.32977887]
[1693683516802,9.79601431,1634.7,1634.6,0.32977887]
[1693683517212,9.79601431,1634.7,1634.5,1.568]
[1693683517364,3.61984332,1634.6,1634.5,1.568]
[1693683517792,3.63196875,1634.6,1634.5,1.568]
[1693683518198,3.63196875,1634.6,1634.5,1.89604344]
[1693683523114,4.91619332,1634.6,1634.5,1.89604344]
[1693683523418,3.63196875,1634.6,1634.5,1.89604344]
[1693683523714,4.91619332,1634.6,1634.5,1.89604344]
[1693683530258,3.63196875,1634.6,1634.5,7.3459018]
[1693683530542,3.63196875,1634.6,1634.5,10.3459018]
[1693683530543,3.31114917,1634.6,1634.5,10.3459018]
[1693683531118,1.71723431,1634.6,1634.5,10.3459018]
[1693683532219,0.01212543,1634.6,1634.5,10.3459018]
[1693683532736,3.72220172,1634.7,1634.5,10.3459018]
[1693683532907,3.72220172,1634.7,1634.6,8.68444422]
[1693683533108,6.37858802,1634.7,1634.6,8.68444422]
[1693683533310,6.37858802,1634.7,1634.6,9.01243789]
[1693683533809,6.39072205,1634.7,1634.6,9.01243789]
[1693683534142,5.4274035,1634.7,1634.6,9.01243789]
[1693683535043,3.3110193,1634.7,1634.6,9.01243789]
[1693683535744,5.4274035,1634.7,1634.6,9.01243789]
[1693683540446,3.3110193,1634.7,1634.6,9.01243789]
[1693683541642,5.4274035,1634.7,1634.6,9.01243789]
[1693683545255,3.83357172,1634.7,1634.6,9.01243789]
[1693683546153,1.71718752,1634.7,1634.6,9.01243789]
[1693683546767,3.83357172,1634.7,1634.6,9.01243789]
[1693683547366,3.83357172,1634.7,1634.6,9.51072759]
[1693683549868,1.71718752,1634.7,1634.6,9.51072759]
[1693683550167,3.83357172,1634.7,1634.6,9.51072759]
[1693683551868,1.71718752,1634.7,1634.6,9.51072759]
[1693683552068,3.83357172,1634.7,1634.6,8.47613741]
[1693683552267,1.71718752,1634.7,1634.6,8.47613741]
[1693683557773,1.71630776,1634.7,1634.6,8.47613741]
[1693683562346,3.83269196,1634.7,1634.6,8.47613741]